[Event "Elegant Academy GM Aspirant-II"]
[Site "Dhaka"]
[Date "2024.02.24"]
[Round "5.3"]
[White "Panesar Vedant"]
[Black "Liyanage, Ranindu Dilshan"]
[Result "1-0"]
[ECO "C55"]
[WhiteElo "2452"]
[BlackElo "2366"]
[Annotator "RC"]
[PlyCount "113"]
[EventDate "2024.02.21"]
[EventType "tourn"]
[EventCountry "BAN"]
[SourceTitle "playchess.com"]
[Source "ChessBase"]
[SourceQuality "1"]
[TimeControl "5400+30"]

1. e4 {[%emt 0:00:03]} e5 {[%emt 0:02:59]} 2. Nf3 {[%emt 0:00:05]} Nc6 {[%emt 0:00:05]} 3. Bc4 {[%emt 0:00:05]} Nf6 {[%emt 0:00:32]} 4. d3 {[%emt 0:00:04]} Be7 {[%emt 0:00:16]} 5. O-O {[%emt 0:00:09]} O-O {[%emt 0:00:07]} 6. Re1 {[%emt 0:00:02]} d6 {[%emt 0:00:46]} 7. a4 {[%emt 0:00:06]} Be6 {[%emt 0:01:02]} 8. Bxe6 {[%emt 0:00:30]} fxe6 {[%emt 0:00:25]} 9. a5 {[%emt 0:00:07]} a6 {[%emt 0:02:30]} 10. Nbd2 {[%emt 0:00:12]} h6 {[%emt 0:03:04]} 11. c3 {[%emt 0:00:25]} Qd7 {[%emt 0:01:44]} 12. Nc4 {[%emt 0:03:41]} Rad8 {[%emt 0:11:14]} 13. Qe2 {[%emt 0:01:59]} Qe8 {[%emt 0:00:30]} 14. Bd2 {[%emt 0:00:30]} Qh5 {[%emt 0:00:30]} 15. h3 {[%emt 0:09:09]} Rf7 {[%emt 0:17:13]} 16. Rad1 {[%emt 0:06:40]} Rdf8 {[%emt 0:02:44]} 17. Nh2 {[%emt 0:00:51]} Qxe2 {[%emt 0:04:02]} 18. Rxe2 {[%emt 0:00:04]} Nd7 {[%emt 0:00:07]} 19. b4 {[%emt 0:03:11]} d5 {[%emt 0:04:58]} 20. Ne3 {[%emt 0:00:18]} Nf6 {[%emt 0:01:12]} 21. Nc2 {[%emt 0:02:40]} Rd8 {[%emt 0:02:07]} 22. Nf3 {[%emt 0:01:06]} Bd6 {[%emt 0:09:09]} 23. Rb1 {[%emt 0:01:42]} b5 {[%emt 0:02:02]} 24. axb6 {[%emt 0:13:04]} cxb6 {[%emt 0:00:10]} 25. c4 {[%emt 0:00:07]} d4 {[%emt 0:05:30]} 26. Ree1 {[%emt 0:06:19]} b5 {[%emt 0:01:22]} 27. Na3 {[%emt 0:00:45]} Rb7 {[%emt 0:01:32]} 28. Rec1 {[%emt 0:00:54]} Rc8 {[%emt 0:04:59]} 29. Rc2 {[%emt 0:06:46]} Na7 {[%emt 0:01:48]} 30. c5 {[%emt 0:10:47]} Bc7 {[%emt 0:01:15]} 31. Ra2 {[%emt 0:00:51]} Nc6 {[%emt 0:00:15]} 32. Nc2 {[%emt 0:00:43]} Ra7 {[%emt 0:00:58]} 33. Be1 {[%emt 0:01:07]} Nd7 {[%emt 0:01:10]} 34. Na3 {[%emt 0:05:49]} Rb8 {[%emt 0:00:36]} 35. Kf1 {[%emt 0:01:13]} Kf7 {[%emt 0:00:20]} 36. Ke2 {[%emt 0:00:56]} Ke7 {[%emt 0:01:18]} 37. Raa1 {[%emt 0:04:12]} Kf7 {[%emt 0:01:16]} 38. Bd2 {[%emt 0:01:54]} Nf8 {[%emt 0:03:02]} 39. Ne1 {[%emt 0:00:26]} Nd7 {[%emt 0:00:33]} 40. Nec2 {[%emt 0:00:53]} Rab7 {[%emt 0:00:23]} 41. Rb2 {[%emt 0:01:30]} a5 {[%emt 0:03:29]} 42. Rab1 {[%emt 0:00:09]} Kf6 {[%emt 0:02:25]} 43. h4 {[%emt 0:01:35]} Bd8 {[%emt 0:01:08]} 44. g3 {[%emt 0:01:00]} Kg6 {[%emt 0:02:18]} 45. f4 {[%emt 0:00:47]} exf4 {[%emt 0:00:46]} 46. gxf4 {[%emt 0:00:11]} e5 {[%emt 0:01:10]} 47. fxe5 {[%emt 0:02:58]} axb4 {[%emt 0:02:51]} 48. Nxb4 {[%emt 0:00:08]} Rc8 {[%emt 0:00:29]} 49. h5+ {[%emt 0:06:48]} Kxh5 {[%emt 0:00:49]} 50. Nd5 {[%emt 0:00:55]} g5 51. e6 {[%emt 0:04:52]} Nxc5 {[%emt 0:01:25]} 52. Rc2 {[%emt 0:00:08]} Nxe6 {[%emt 0:02:47]} 53. Rbc1 {[%emt 0:00:06]} b4 {[%emt 0:00:31]} 54. Nb1 {[%emt 0:00:23]} Ra8 {[%emt 0:01:04]} 55. Rxc6 {[%emt 0:00:03]} Nf8 {[%emt 0:00:31]} 56. Rh1+ {[%emt 0:00:56]} Kg4 {[%emt 0:00:05]} 57. Rcc1 {[%emt 0:00:13]} 1-0

[Event "Elegant Academy GM Aspirant-II"]
[Site "Dhaka"]
[Date "2024.02.24"]
[Round "5.4"]
[White "Setyaki, Azarya Jodi"]
[Black "Rahman, Ziaur"]
[Result "1/2-1/2"]
[ECO "B32"]
[WhiteElo "2400"]
[BlackElo "2428"]
[Annotator "TA"]
[PlyCount "69"]
[EventDate "2024.02.21"]
[EventType "tourn"]
[EventCountry "BAN"]
[SourceTitle "playchess.com"]
[Source "ChessBase"]
[SourceQuality "1"]
[TimeControl "5400+30"]

{[%evp 14,69,34,26,37,29,27,30,34,33,28,19,39,-23,-24,-18,-21,-68,-54,-66,-25,-53,-44,-66,-29,-35,-37,-32,-38,-6,0,-8,0,0,0,0,0,4,16,0,17,13,45,30,98,103,106,106,98,109,102,0,0,0,0,0,0,0]} 1. e4 {[%emt 0:00:04]} c5 {[%emt 0:00:10]} 2. Nf3 {[%emt 0:00:07][%cal Bg1f3,Bf3d4,Bd4b5,Bb5a3,Ba3c4][%mdl 32]} Nc6 {[%emt 0:00:06]} 3. d4 {[%emt 0:00:10]} cxd4 {[%emt 0:00:05]} 4. Nxd4 {[%emt 0:00:04]} e5 {[%emt 0:00:16]} 5. Nb5 {[%emt 0:00:06]} d6 {[%emt 0:00:06]} 6. N1c3 {[%emt 0:00:14]} a6 {[%emt 0:00:07]} 7. Na3 {[%emt 0:00:04]} Be7 {[%emt 0:00:18]} 8. Nc4 {[%emt 0:00:20]} b5 {[%emt 0:00:28]} 9. Ne3 {[%emt 0:00:06]} Nf6 {[%emt 0:00:05]} 10. Bd3 {[%emt 0:00:08]} O-O {[%emt 0:00:07] White has an edge.} 11. O-O {[%emt 0:00:11]} Nb4 {[%emt 0:00:39]} 12. Be2 {[%emt 0:01:58]} Be6 {[%emt 0:02:09]} 13. Ncd5 {[%emt 0:06:27]} ({White should try} 13. a3 $14 Nc6 14. Ned5) 13... Nbxd5 $11 {[%emt 0:01:44]} 14. exd5 {[%emt 0:00:10]} Bd7 {[%emt 0:01:01]} 15. f4 {[%emt 0:04:51]} (15. c4 $11 Ne4 16. Qc2) 15... exf4 {[%emt 0:04:48]} 16. Rxf4 {[%emt 0:00:23]} g6 {[%emt 0:00:28]} 17. Qd3 {[%emt 0:05:11]} Be8 {[%emt 0:04:17]} 18. c4 {[%emt 0:06:04]} Qb6 {[%emt 0:08:23]} 19. Kh1 {[%emt 0:12:35]} Nd7 {[%emt 0:04:05]} 20. cxb5 {[%emt 0:06:18]} Ne5 {[%emt 0:07:45][%csl LRb5,LRd3]} 21. Qb3 {[%emt 0:00:55]} axb5 {[%emt 0:01:27]} 22. Rb4 {[%emt 0:00:52][%cal Oe3d1]} f5 {[%emt 0:04:55]} 23. Nc2 {[%emt 0:00:33][%cal Oc1e3]} Qf2 {[%emt 0:06:16]} 24. Qe3 {[%emt 0:00:41]} Qxe3 {[%emt 0:00:44]} 25. Bxe3 {[%emt 0:00:16][%cal Oc2d4]} Ra4 {[%emt 0:01:04]} 26. Bd2 {[%emt 0:26:18]} (26. Bxb5 $2 {is the wrong capture.} Rxb4 27. Nxb4 Bxb5 $19) 26... Bd7 {[%emt 0:08:46]} 27. Nd4 {[%emt 0:01:05]} Rfa8 {[%emt 0:09:57]} 28. a3 {[%emt 0:02:31]} Nc4 {[%emt 0:00:50]} (28... Rc8 $11) 29. Rxa4 $1 $16 {[%emt 0:06:56]} Rxa4 {[%emt 0:00:40] [#]} 30. b3 $1 {[%emt 0:00:44]} Rxa3 {[%emt 0:00:14]} 31. Rxa3 {[%emt 0:00:04]} Nxa3 {[%emt 0:00:03] [#]} 32. Bb4 {[%emt 0:00:09] White is more active.} (32. Nc6 $1 $16 {[%cal Rc6e7]} Bh4 33. Bb4) 32... Bf6 $11 {[%emt 0:01:00] The position is equal.} 33. Nc6 {[%emt 0:00:19]} Nc2 {[%emt 0:01:07]} 34. Bxd6 {[%emt 0:00:11]} Nd4 {[%emt 0:01:28]} 35. Nxd4 {[%emt 0:00:20] Weighted Error Value: White=0.13 (very precise) /Black=0.10 (very precise) .  Mistake:       	White=3     	Black=1      Inaccurate:     	White=1     	Black=3      OK:         	White=12    	Black=12     Best:        	White=1     	Black=1      Strong:       	White=2     	---} 1/2-1/2

[Event "Elegant Academy GM Aspirant-II"]
[Site "Dhaka"]
[Date "2024.02.24"]
[Round "5.5"]
[White "Mayank Chakraborty"]
[Black "Mohammad Fahad, Rahman"]
[Result "1/2-1/2"]
[ECO "D13"]
[WhiteElo "2409"]
[BlackElo "2418"]
[Annotator "RC"]
[PlyCount "60"]
[EventDate "2024.02.21"]
[EventType "tourn"]
[EventCountry "BAN"]
[SourceTitle "playchess.com"]
[Source "ChessBase"]
[SourceQuality "1"]
[TimeControl "5400+30"]

1. d4 {[%emt 0:00:04]} d5 {[%emt 0:00:29]} 2. c4 {[%emt 0:00:08]} c6 {[%emt 0:00:09]} 3. cxd5 {[%emt 0:00:03]} cxd5 {[%emt 0:00:07]} 4. Nc3 {[%emt 0:00:03]} Nc6 {[%emt 0:00:10]} 5. Bf4 {[%emt 0:00:07]} Nf6 {[%emt 0:00:06]} 6. e3 {[%emt 0:00:04]} a6 {[%emt 0:00:06]} 7. Be2 {[%emt 0:00:04]} Bf5 {[%emt 0:02:24]} 8. Nf3 {[%emt 0:00:42]} e6 {[%emt 0:01:10]} 9. O-O {[%emt 0:00:36]} Bd6 {[%emt 0:02:25]} 10. Bxd6 {[%emt 0:00:05]} Qxd6 {[%emt 0:00:02]} 11. Rc1 {[%emt 0:00:08]} O-O {[%emt 0:00:31]} 12. Na4 {[%emt 0:00:18]} Bg4 {[%emt 0:11:54]} 13. a3 {[%emt 0:06:44]} Bxf3 {[%emt 0:00:17]} 14. Bxf3 {[%emt 0:00:07]} Nd7 {[%emt 0:01:15]} 15. Be2 {[%emt 0:06:09]} Rfc8 {[%emt 0:02:48]} 16. Bd3 {[%emt 0:03:44]} Rc7 {[%emt 0:10:13]} 17. Nc5 {[%emt 0:04:34]} Nxc5 {[%emt 0:05:03]} 18. dxc5 {[%emt 0:00:44]} Qe7 {[%emt 0:00:31]} 19. b4 {[%emt 0:04:59]} e5 {[%emt 0:01:27]} 20. e4 {[%emt 0:01:04]} dxe4 {[%emt 0:02:21]} 21. Bxe4 {[%emt 0:00:15]} Rd8 {[%emt 0:00:29]} 22. Qb3 {[%emt 0:04:47]} Nd4 {[%emt 0:00:43]} 23. Qa2 {[%emt 0:00:20]} Qh4 {[%emt 0:00:26]} 24. Bd5 {[%emt 0:00:50]} Rcd7 {[%emt 0:00:24]} 25. Bc4 {[%emt 0:00:09]} Qg5 {[%emt 0:00:22]} 26. Kh1 {[%emt 0:00:26]} g6 {[%emt 0:00:36]} 27. Rce1 {[%emt 0:00:15]} Qf5 {[%emt 0:00:29]} 28. Qb2 {[%emt 0:00:23]} Nf3 {[%emt 0:00:11]} 29. Rc1 {[%emt 0:02:04]} Nd4 {[%emt 0:01:07]} 30. Rc3 {[%emt 0:00:12]} h5 {[%emt 0:00:20]} 1/2-1/2

[Event "Elegant Academy GM Aspirant-II"]
[Site "Dhaka"]
[Date "2024.02.25"]
[Round "6.1"]
[White "Aradhya, Garg"]
[Black "Mohammad Fahad, Rahman"]
[Result "1/2-1/2"]
[ECO "D46"]
[WhiteElo "2390"]
[BlackElo "2418"]
[Annotator "TA"]
[PlyCount "69"]
[EventDate "2024.02.21"]
[EventType "tourn"]
[EventCountry "BAN"]
[SourceTitle "playchess.com"]
[Source "ChessBase"]
[SourceQuality "1"]
[TimeControl "5400+30"]

{[%evp 18,69,10,1,6,-14,-19,-33,-26,-22,0,0,0,0,0,-28,-6,-19,0,0,0,-31,-28,-25,-12,-13,-9,-12,-10,-10,0,0,0,0,0,0,0,0,0,0,0,0,0,0,0,0,0,0,0,0,0,0,0,0]} 1. d4 {[%emt 0:00:02]} d5 {[%emt 0:00:31]} 2. c4 {[%emt 0:00:04]} e6 {[%emt 0:00:12]} 3. Nf3 {[%emt 0:01:03]} Nf6 {[%emt 0:00:10]} 4. Nc3 {[%emt 0:00:07]} c6 {[%emt 0:00:53]} 5. e3 {[%emt 0:00:05]} Nbd7 {[%emt 0:00:22]} 6. Qc2 {[%emt 0:02:59]} Bd6 {[%emt 0:00:35]} 7. Bd3 {[%emt 0:00:07]} O-O {[%emt 0:00:13]} 8. O-O {[%emt 0:00:04]} dxc4 {[%emt 0:00:06]} 9. Bxc4 {[%emt 0:00:03]} a6 {[%emt 0:00:18]} 10. a4 {[%emt 0:20:38]} c5 {[%emt 0:03:02]} 11. a5 {[%emt 0:00:07]} cxd4 {[%emt 0:16:53]} 12. exd4 {[%emt 0:00:03]} b5 {[%emt 0:00:19] Black is slightly better.} 13. axb6 {[%emt 0:00:29]} Nxb6 {[%emt 0:00:13][%cal Bd7b6,Bb6d5,Bd5f6][%mdl 32]} 14. Bd3 {[%emt 0:00:18]} Bb7 {[%emt 0:00:08]} 15. Qe2 {[%emt 0:00:22]} a5 {[%emt 0:03:56]} 16. Bg5 {[%emt 0:02:34]} Nbd5 {[%emt 0:01:21]} 17. Ne5 {[%emt 0:08:09]} Be7 {[%emt 0:02:11]} (17... h6 $5 18. Nxd5 hxg5 19. Nxf6+ Qxf6 $15) 18. Rfd1 {[%emt 0:05:04]} (18. Qf3 {looks sharper.} Nd7 19. Qh3 f5 20. Bxe7 Qxe7 21. Qg3) 18... h6 {[%emt 0:03:59]} 19. Bxf6 {[%emt 0:05:58]} Nxf6 {[%emt 0:00:24]} (19... Bxf6 $2 {loses.} 20. Qe4 g6 21. Nxg6 $16) 20. Bc4 {[%emt 0:00:40][%cal Bd3c4,Bc4d5,Bd5b7][%mdl 32]} Bb4 {[%emt 0:05:24]} 21. d5 {[%emt 0:11:44] The position is equal.} exd5 {[%emt 0:15:19]} 22. Nxd5 {[%emt 0:00:38]} Nxd5 {[%emt 0:06:11]} 23. Qf3 {[%emt 0:02:37]} Qc7 {[%emt 0:04:01]} 24. Bxd5 {[%emt 0:00:29]} Qxe5 {[%emt 0:00:09]} 25. Bxb7 {[%emt 0:00:18]} Rad8 {[%emt 0:02:50]} 26. b3 {[%emt 0:00:21]} Rd6 {[%emt 0:01:42]} 27. Rac1 {[%emt 0:03:54]} (27. Bd5 {feels hotter.} Rf6 28. Qe4 Qb2 29. f4) 27... Bd2 {[%emt 0:07:34]} 28. Rc6 {[%emt 0:03:27]} Rfd8 {[%emt 0:00:56]} 29. Rxd6 {[%emt 0:00:21]} Rxd6 {[%emt 0:00:01]} 30. g3 {[%emt 0:00:11]} g6 {[%emt 0:00:44]} 31. Qe4 {[%emt 0:01:09]} Qb5 {[%emt 0:04:22]} 32. Qc2 $1 {[%emt 0:01:02]} Qxb7 {[%emt 0:05:16]} 33. Rxd2 {[%emt 0:00:02]} Rxd2 {[%emt 0:01:50]} 34. Qxd2 {[%emt 0:01:26]} Qxb3 {[%emt 0:00:05]} 35. Qxa5 {[%emt 0:00:17] An interesting draw.   Weighted Error Value: White=0.05 (flawless) /Black=0.04 (flawless) .  Inaccurate:     	White=2     	---        OK:         	White=13    	Black=9      Best:        	White=1     	---        Strong:       	White=1     	---} 1/2-1/2

[Event "Elegant Academy GM Aspirant-II"]
[Site "Dhaka"]
[Date "2024.02.25"]
[Round "6.2"]
[White "Rahman, Ziaur"]
[Black "Mayank Chakraborty"]
[Result "1-0"]
[ECO "D02"]
[WhiteElo "2428"]
[BlackElo "2409"]
[Annotator "RC"]
[PlyCount "101"]
[EventDate "2024.02.21"]
[EventType "tourn"]
[EventCountry "BAN"]
[SourceTitle "playchess.com"]
[Source "ChessBase"]
[SourceQuality "1"]
[TimeControl "5400+30"]

1. Nf3 {[%emt 0:00:08]} d5 {[%emt 0:00:23]} 2. g3 {[%emt 0:00:20]} Nd7 {[%emt 0:00:12]} 3. d4 {[%emt 0:00:13]} Nb6 {[%emt 0:00:01]} 4. Nc3 {[%emt 0:00:21]} Nf6 {[%emt 0:01:21]} 5. Bg2 {[%emt 0:00:23]} g6 {[%emt 0:04:55]} 6. O-O {[%emt 0:02:33]} Bg7 {[%emt 0:00:14]} 7. a4 {[%emt 0:11:06]} a5 {[%emt 0:01:23]} 8. Bf4 {[%emt 0:03:30]} O-O {[%emt 0:08:53]} 9. Ne5 {[%emt 0:03:57]} Ng4 {[%emt 0:08:45]} 10. e4 {[%emt 0:04:42]} Nxe5 {[%emt 0:00:40]} 11. dxe5 {[%emt 0:04:34]} d4 {[%emt 0:10:08]} 12. Nb5 {[%emt 0:13:01]} Nc4 {[%emt 0:08:31]} 13. e6 {[%emt 0:02:07]} c6 {[%emt 0:01:57]} 14. Bc7 {[%emt 0:00:18]} Qe8 {[%emt 0:00:06]} 15. Nxd4 {[%emt 0:00:15]} Nxb2 {[%emt 0:01:54]} 16. Qd2 {[%emt 0:05:49]} c5 {[%emt 0:13:38]} 17. e5 {[%emt 0:00:37]} cxd4 {[%emt 0:13:51]} 18. Qxd4 {[%emt 0:00:22]} Bxe6 {[%emt 0:00:05]} 19. Qxb2 {[%emt 0:00:08]} Qc8 {[%emt 0:03:52]} 20. Bb6 {[%emt 0:09:17]} Bh3 {[%emt 0:02:03]} 21. Bxh3 {[%emt 0:00:25]} Qxh3 {[%emt 0:00:02]} 22. Bd4 {[%emt 0:00:22]} Qc8 {[%emt 0:05:04]} 23. c3 {[%emt 0:01:04]} Qc7 {[%emt 0:01:33]} 24. Qb5 {[%emt 0:00:40]} h5 {[%emt 0:03:15]} 25. Rfb1 {[%emt 0:01:15]} Rab8 {[%emt 0:00:49]} 26. Qe2 {[%emt 0:00:24]} Rfc8 {[%emt 0:01:15]} 27. Rb5 {[%emt 0:00:38]} e6 {[%emt 0:00:43]} 28. Rab1 {[%emt 0:00:20]} Re8 {[%emt 0:02:55]} 29. Qf3 {[%emt 0:00:45]} Qc4 {[%emt 0:02:20]} 30. Rxa5 {[%emt 0:01:12]} Re7 {[%emt 0:01:11]} 31. Rb4 {[%emt 0:01:39]} Qa2 {[%emt 0:00:11]} 32. Rab5 {[%emt 0:00:25]} Bf8 {[%emt 0:01:15]} 33. a5 {[%emt 0:04:02]} Rd7 {[%emt 0:01:07]} 34. Rb2 {[%emt 0:00:56]} Qa4 {[%emt 0:00:13]} 35. Kg2 {[%emt 0:00:41]} Kg7 {[%emt 0:01:23]} 36. Qe2 {[%emt 0:01:48]} Rc8 {[%emt 0:01:49]} 37. Rxb7 {[%emt 0:00:33]} Bc5 {[%emt 0:00:28]} 38. Rxd7 {[%emt 0:04:36]} Qxd7 {[%emt 0:00:01]} 39. Qe4 {[%emt 0:01:57]} Bxd4 {[%emt 0:01:01]} 40. cxd4 {[%emt 0:00:07]} Qa4 {[%emt 0:00:16]} 41. Qb7 {[%emt 0:01:30]} Rc1 {[%emt 0:00:45]} 42. Qf3 {[%emt 0:02:00]} Rc8 {[%emt 0:00:29]} 43. Rb7 {[%emt 0:00:32]} Rf8 {[%emt 0:00:01]} 44. d5 {[%emt 0:01:53]} Qxa5 {[%emt 0:00:26]} 45. dxe6 {[%emt 0:00:21]} Qxe5 {[%emt 0:00:04]} 46. Rxf7+ {[%emt 0:00:04]} Rxf7 {[%emt 0:00:03]} 47. Qxf7+ {[%emt 0:00:06]} Kh6 {[%emt 0:00:04]} 48. h4 {[%emt 0:00:52]} Qe4+ {[%emt 0:00:07]} 49. Kh2 {[%emt 0:00:12]} g5 {[%emt 0:00:03]} 50. e7 {[%emt 0:00:28]} gxh4 {[%emt 0:00:04]} 51. Qf4+ {[%emt 0:00:13]} 1-0

[Event "Elegant Academy GM Aspirant-II"]
[Site "Dhaka"]
[Date "2024.02.25"]
[Round "6.3"]
[White "Liyanage, Ranindu Dilshan"]
[Black "Setyaki, Azarya Jodi"]
[Result "1/2-1/2"]
[ECO "D70"]
[WhiteElo "2366"]
[BlackElo "2400"]
[Annotator "RC"]
[PlyCount "60"]
[EventDate "2024.02.21"]
[EventType "tourn"]
[EventCountry "BAN"]
[SourceTitle "playchess.com"]
[Source "ChessBase"]
[SourceQuality "1"]
[TimeControl "5400+30"]

1. Nf3 {[%emt 0:00:42]} d5 {[%emt 0:00:26]} 2. e3 {[%emt 0:00:13]} g6 {[%emt 0:01:30]} 3. c4 {[%emt 0:00:24]} Nf6 {[%emt 0:03:04]} 4. d4 {[%emt 0:06:48]} Bg7 {[%emt 0:01:50]} 5. cxd5 {[%emt 0:00:42]} Nxd5 {[%emt 0:00:15]} 6. e4 {[%emt 0:01:30]} Nb6 {[%emt 0:00:26]} 7. h3 {[%emt 0:01:27]} c5 {[%emt 0:04:03]} 8. d5 {[%emt 0:09:47]} e6 {[%emt 0:03:09]} 9. a4 {[%emt 0:10:28]} exd5 {[%emt 0:07:11]} 10. a5 {[%emt 0:00:07]} Nc4 {[%emt 0:00:15]} 11. exd5 {[%emt 0:07:27]} Qe7+ {[%emt 0:06:11]} 12. Qe2 {[%emt 0:00:51]} b5 {[%emt 0:05:30]} 13. Nc3 {[%emt 0:08:40]} Qxe2+ {[%emt 0:23:40]} 14. Bxe2 {[%emt 0:00:27]} Bxc3+ {[%emt 0:00:10]} 15. bxc3 {[%emt 0:00:06]} Bb7 {[%emt 0:00:02]} 16. Rb1 {[%emt 0:14:49]} Bxd5 {[%emt 0:01:43]} 17. Rxb5 {[%emt 0:00:06]} Nd7 {[%emt 0:00:22]} 18. O-O {[%emt 0:01:09]} a6 {[%emt 0:02:57]} 19. Rb1 {[%emt 0:00:07]} Nxa5 {[%emt 0:00:15]} 20. Bh6 {[%emt 0:04:22]} f6 {[%emt 0:02:02]} 21. Rfd1 {[%emt 0:01:43]} Bc4 {[%emt 0:04:37]} 22. Bxc4 {[%emt 0:01:44]} Nxc4 {[%emt 0:00:20]} 23. Rb7 {[%emt 0:00:18]} O-O-O {[%emt 0:02:08]} 24. Ra7 {[%emt 0:01:20]} Ndb6 {[%emt 0:00:47]} 25. Rb1 {[%emt 0:04:17]} Rd7 {[%emt 0:01:28]} 26. Rxa6 {[%emt 0:00:47]} Kb7 {[%emt 0:00:10]} 27. Ra2 {[%emt 0:01:18]} Rhd8 {[%emt 0:00:11]} 28. Re2 {[%emt 0:00:39]} Rd1+ {[%emt 0:00:06]} 29. Rxd1 {[%emt 0:00:05]} Rxd1+ {[%emt 0:00:03]} 30. Kh2 {[%emt 0:00:06]} Kc6 {[%emt 0:00:05]} 1/2-1/2

[Event "Elegant Academy GM Aspirant-II"]
[Site "Dhaka"]
[Date "2024.02.25"]
[Round "6.4"]
[White "Murshed, Niaz"]
[Black "Panesar Vedant"]
[Result "0-1"]
[ECO "E03"]
[WhiteElo "2363"]
[BlackElo "2452"]
[Annotator "TA"]
[PlyCount "70"]
[EventDate "2024.02.21"]
[EventType "tourn"]
[EventCountry "BAN"]
[SourceTitle "playchess.com"]
[Source "ChessBase"]
[SourceQuality "1"]
[TimeControl "5400+30"]

{[%evp 18,70,-39,-52,-54,-66,-46,-88,-29,-28,-12,-26,-27,-36,-13,-22,-15,-37,-13,-121,13,-28,-29,-27,-38,-53,-43,-58,-39,-75,-54,-94,-104,-111,-85,-96,-100,-120,-116,-108,-89,-152,-145,-208,-203,-308,-250,-363,-365,-525,-563,-568,-557,-556,-539]} 1. d4 {[%emt 0:00:15]} Nf6 {[%emt 0:00:03]} 2. Nf3 {[%emt 0:00:18]} d5 {[%emt 0:00:07]} 3. c4 {[%emt 0:00:06]} e6 {[%emt 0:00:08]} 4. g3 {[%emt 0:00:05]} Nbd7 {[%emt 0:00:58]} 5. Bg2 {[%emt 0:00:49]} dxc4 {[%emt 0:00:07]} 6. Qa4 {[%emt 0:02:43]} a6 {[%emt 0:00:18]} 7. Qxc4 {[%emt 0:00:48]} b5 {[%emt 0:00:03]} 8. Qc2 {[%emt 0:05:10]} Bb7 {[%emt 0:00:03]} 9. Bg5 {[%emt 0:00:31]} c5 {[%emt 0:00:52]} 10. O-O {[%emt 0:01:34]} Rc8 {[%emt 0:00:02]} 11. Qd1 {[%emt 0:03:53]} Qb6 {[%emt 0:00:30]} 12. Nc3 {[%emt 0:17:43]} c4 {[%emt 0:01:54]} ({Better is} 12... cxd4 $17 13. Qxd4 Bc5) 13. a3 $11 {[%emt 0:08:25]} Be7 {[%emt 0:00:28]} 14. Ne5 {[%emt 0:06:08]} Bxg2 {[%emt 0:04:07]} (14... Rd8 {simplifies} 15. Nxd7 Rxd7 16. e3 O-O) 15. Kxg2 {[%emt 0:00:07]} Nxe5 {[%emt 0:02:19]} 16. dxe5 {[%emt 0:01:29]} Rd8 {[%emt 0:03:59]} 17. Qc2 {[%emt 0:10:29]} Qb7+ {[%emt 0:09:13]} 18. e4 {[%emt 0:02:38] [#]} (18. Kg1 $11 {keeps the balance.} Nd5 19. Bxe7 Qxe7 20. a4) 18... Nd5 {[%emt 0:10:40]} 19. Bxe7 {[%emt 0:01:35]} Nxe7 {[%emt 0:00:07]} 20. Rad1 {[%emt 0:00:48]} O-O {[%emt 0:00:42]} 21. Rxd8 {[%emt 0:00:12]} Rxd8 {[%emt 0:00:02]} 22. Rd1 {[%emt 0:00:06]} Qb8 {[%emt 0:01:22]} 23. Rxd8+ {[%emt 0:04:40]} Qxd8 {[%emt 0:00:06]} 24. Qd1 {[%emt 0:00:20]} Qxd1 {[%emt 0:00:37]} 25. Nxd1 $17 {[%emt 0:00:04][%cal Oa3a4][%mdl 4096] Endgame. KN-KN} Nc6 {[%emt 0:01:32]} 26. f4 {[%emt 0:00:09] [#]} Kf8 $1 {[%emt 0:00:08]} 27. Kf2 {[%emt 0:00:20][%cal Oa3a4]} Ke7 {[%emt 0:00:18]} 28. Ke3 {[%emt 0:00:25]} Kd7 {[%emt 0:00:06]} 29. h4 {[%emt 0:01:26]} ({White should try} 29. Nf2) 29... Kc7 {[%emt 0:00:48]} 30. h5 {[%emt 0:02:43]} (30. Nf2 $17 {was worth a try.}) 30... Kb6 $19 {[%emt 0:02:55]} 31. Nf2 {[%emt 0:07:42]} (31. Nc3 $142) 31... b4 {[%emt 0:03:08]} 32. axb4 {[%emt 0:04:24]} (32. Kd2 $142 Kc5 33. axb4+ Kxb4 34. Nh3) 32... Kb5 $1 {[%emt 0:00:07]} 33. Ng4 {[%emt 0:00:30]} (33. Kd2 $142 Kxb4 34. g4) 33... Kxb4 {[%emt 0:00:35] White must now prevent ...Kb3. Black is clearly winning.} 34. Kd2 {[%emt 0:00:06]} Kb3 {[%emt 0:01:06]} 35. Kc1 {[%emt 0:00:04]} Nb4 {[%emt 0:07:12] Weighted Error Value: White=0.37/Black=0.19 (very precise) .  Mistake:       	White=6     	Black=2      Inaccurate:     	White=3     	---        OK:         	White=2     	Black=8      Best:        	White=1     	Black=2      Strong:       	---       	Black=2} 0-1